[Event "Rapid Tournament (RAP)"]
[Site "Biel, Switzerland"]
[Date "2026.07.12"]
[Round "7.3"]
[White "Lu, Miaoyi"]
[Black "Ganguly, Surya Shekhar"]
[Result "0-1"]
[TimeControl "15 + 5"]
[WhiteTitle "-"]
[BlackTitle "-"]
[WhiteFideId "8618020"]
[BlackFideId "5002150"]
[WhiteElo "2309"]
[BlackElo "2545"]

1. e4 {[%clk 00:15:09]} c5 {[%clk 00:15:09]} {[%emt 00:00:01]} 2. Nc3 {[%clk
00:15:12]} {[%emt 00:00:02]} d6 {[%clk 00:15:06]} {[%emt 00:00:08]} 3. Nge2
{[%clk 00:14:53]} {[%emt 00:00:23]} Nf6 {[%clk 00:15:05]} {[%emt 00:00:06]} 4.
g3 {[%clk 00:14:55]} {[%emt 00:00:03]} g6 {[%clk 00:15:08]} {[%emt 00:00:02]} 5.
Bg2 {[%clk 00:14:59]} {[%emt 00:00:02]} Bg7 {[%clk 00:15:10]} {[%emt 00:00:02]}
6. d4 {[%clk 00:14:42]} {[%emt 00:00:21]} cxd4 {[%clk 00:15:05]} {[%emt
00:00:10]} 7. Nxd4 {[%clk 00:14:46]} {[%emt 00:00:02]} O-O {[%clk 00:14:57]}
{[%emt 00:00:12]} 8. O-O {[%clk 00:14:46]} {[%emt 00:00:05]} Nc6 {[%clk
00:14:47]} {[%emt 00:00:15]} 9. h3 {[%clk 00:14:14]} {[%emt 00:00:37]} Nxe4
{[%clk 00:13:29]} {[%emt 00:01:23]} 10. Nxc6 {[%clk 00:13:47]} {[%emt
00:00:32]} Nxc3 {[%clk 00:13:32]} {[%emt 00:00:01]} 11. Nxd8 {[%clk 00:13:21]}
{[%emt 00:00:31]} Nxd1 {[%clk 00:13:35]} {[%emt 00:00:02]} 12. Nxb7 {[%clk
00:12:35]} {[%emt 00:00:52]} Bxb7 {[%clk 00:13:03]} {[%emt 00:00:37]} 13. Bxb7
{[%clk 00:12:38]} {[%emt 00:00:02]} Rab8 {[%clk 00:13:07]} 14. Bd5 {[%clk
00:08:53]} {[%emt 00:03:49]} Bxb2 {[%clk 00:12:03]} {[%emt 00:01:10]} 15. Rb1
{[%clk 00:06:40]} {[%emt 00:02:19]} Bxc1 {[%clk 00:11:22]} {[%emt 00:00:45]} 16.
Rxb8 {[%clk 00:06:43]} {[%emt 00:00:02]} Rxb8 {[%clk 00:11:26]} {[%emt
00:00:01]} 17. Rxd1 {[%clk 00:06:47]} {[%emt 00:00:01]} Ba3 {[%clk 00:10:53]}
{[%emt 00:00:37]} 18. Bb3 {[%clk 00:05:11]} {[%emt 00:01:41]} e6 {[%clk
00:10:51]} {[%emt 00:00:07]} 19. h4 {[%clk 00:05:01]} {[%emt 00:00:15]} h5
{[%clk 00:10:47]} {[%emt 00:00:08]} 20. Rd4 {[%clk 00:04:25]} {[%emt 00:00:42]}
d5 {[%clk 00:10:31]} {[%emt 00:00:21]} 21. Ra4 {[%clk 00:03:52]} {[%emt
00:00:38]} Bc5 {[%clk 00:10:34]} {[%emt 00:00:01]} 22. Kg2 {[%clk 00:03:34]}
{[%emt 00:00:23]} Kg7 {[%clk 00:10:28]} {[%emt 00:00:11]} 23. Kf3 {[%clk
00:03:35]} {[%emt 00:00:04]} Kf6 {[%clk 00:10:27]} {[%emt 00:00:06]} 24. Ra6
{[%clk 00:03:25]} {[%emt 00:00:15]} Bb6 {[%clk 00:10:05]} {[%emt 00:00:27]} 25.
a4 {[%clk 00:03:21]} {[%emt 00:00:10]} Rc8 {[%clk 00:09:41]} {[%emt 00:00:28]}
26. Ke2 {[%clk 00:02:10]} {[%emt 00:01:17]} Rc5 {[%clk 00:09:34]} {[%emt
00:00:11]} 27. Kd3 {[%clk 00:02:05]} {[%emt 00:00:10]} Ke7 {[%clk 00:09:16]}
{[%emt 00:00:23]} 28. c4 {[%clk 00:01:03]} {[%emt 00:01:08]} Kd6 {[%clk
00:08:58]} {[%emt 00:00:23]} 29. cxd5 {[%clk 00:00:36]} {[%emt 00:00:32]} exd5
{[%clk 00:09:01]} {[%emt 00:00:01]} 30. a5 {[%clk 00:00:12]} {[%emt 00:00:30]}
Rxa5 {[%clk 00:09:03]} {[%emt 00:00:03]} 31. Rxa5 {[%clk 00:00:16]} Bxa5 {[%clk
00:09:07]} {[%emt 00:00:02]} 32. Ba4 {[%clk 00:00:09]} {[%emt 00:00:12]} Bb6
{[%clk 00:08:52]} {[%emt 00:00:19]} 33. Ke2 {[%clk 00:00:09]} {[%emt 00:00:05]}
a5 {[%clk 00:08:37]} {[%emt 00:00:20]} 34. Be8 {[%clk 00:00:11]} {[%emt
00:00:03]} Ke6 {[%clk 00:08:37]} {[%emt 00:00:04]} 35. f3 {[%clk 00:00:12]}
{[%emt 00:00:04]} Bc7 {[%clk 00:08:34]} {[%emt 00:00:09]} 36. Kf2 {[%clk
00:00:14]} {[%emt 00:00:03]} d4 {[%clk 00:07:25]} {[%emt 00:01:14]} 37. g4
{[%clk 00:00:13]} {[%emt 00:00:06]} Bd8 {[%clk 00:07:23]} {[%emt 00:00:07]} 38.
Kg3 {[%clk 00:00:08]} {[%emt 00:00:11]} d3 {[%clk 00:07:19]} {[%emt 00:00:09]}
39. Kf2 {[%clk 00:00:07]} {[%emt 00:00:06]} Bxh4+ {[%clk 00:06:39]} {[%emt
00:00:44]} 40. Ke3 {[%clk 00:00:10]} {[%emt 00:00:02]} Bg5+ {[%clk 00:06:43]}
{[%emt 00:00:01]} 41. Kxd3 {[%clk 00:00:11]} {[%emt 00:00:04]} h4 {[%clk
00:06:47]} 42. Ke2 {[%clk 00:00:08]} {[%emt 00:00:08]} Bf4 {[%clk 00:06:49]}
{[%emt 00:00:02]} 0-1

[Event "Rapid Tournament (RAP)"]
[Site "Biel, Switzerland"]
[Date "2026.07.12"]
[Round "7.4"]
[White "Aronyak, Ghosh"]
[Black "Arjun, Kalyan"]
[Result "1/2-1/2"]
[TimeControl "15 + 5"]
[WhiteTitle "-"]
[BlackTitle "-"]
[WhiteFideId "25072846"]
[BlackFideId "35018701"]
[WhiteElo "2482"]
[BlackElo "2390"]

1. d4 {[%clk 00:15:00]} {[%emt 00:00:09]} d5 {[%clk 00:15:08]} {[%emt
00:00:02]} 2. Nf3 {[%clk 00:14:48]} {[%emt 00:00:18]} Nf6 {[%clk 00:15:11]}
{[%emt 00:00:02]} 3. a3 {[%clk 00:14:51]} {[%emt 00:00:02]} Bf5 {[%clk
00:14:38]} {[%emt 00:00:38]} 4. c4 {[%clk 00:14:48]} {[%emt 00:00:08]} e6
{[%clk 00:14:42]} {[%emt 00:00:01]} 5. Nc3 {[%clk 00:14:42]} {[%emt 00:00:11]}
c6 {[%clk 00:12:48]} {[%emt 00:01:59]} 6. Bg5 {[%clk 00:14:15]} {[%emt
00:00:31]} Nbd7 {[%clk 00:11:56]} {[%emt 00:00:57]} 7. e3 {[%clk 00:13:55]}
{[%emt 00:00:25]} h6 {[%clk 00:11:54]} {[%emt 00:00:06]} 8. Bf4 {[%clk
00:13:44]} {[%emt 00:00:17]} Be7 {[%clk 00:11:46]} {[%emt 00:00:12]} 9. h3
{[%clk 00:13:38]} {[%emt 00:00:10]} dxc4 {[%clk 00:10:03]} {[%emt 00:01:49]} 10.
Bxc4 {[%clk 00:13:36]} {[%emt 00:00:07]} Nb6 {[%clk 00:09:48]} {[%emt
00:00:20]} 11. Be2 {[%clk 00:11:41]} {[%emt 00:02:00]} Nbd5 {[%emt 00:01:55]}
12. Be5 {[%clk 00:10:01]} O-O {[%clk 00:08:03]} {[%emt 00:01:45]} 13. O-O
{[%clk 00:09:57]} {[%emt 00:00:09]} a5 {[%clk 00:07:24]} {[%emt 00:00:44]} 14.
Rc1 {[%clk 00:09:39]} {[%emt 00:00:23]} Nxc3 {[%clk 00:06:54]} {[%emt
00:00:35]} 15. Rxc3 {[%clk 00:09:42]} {[%emt 00:00:01]} a4 {[%clk 00:06:53]}
{[%emt 00:00:06]} 16. Nd2 {[%clk 00:09:13]} {[%emt 00:00:34]} Ne4 {[%clk
00:05:59]} {[%emt 00:00:59]} 17. Nxe4 {[%clk 00:09:03]} {[%emt 00:00:15]} Bxe4
{[%clk 00:06:03]} {[%emt 00:00:01]} 18. Bd3 {[%clk 00:08:49]} {[%emt 00:00:19]}
Bxd3 {[%clk 00:05:56]} {[%emt 00:00:12]} 19. Qxd3 {[%clk 00:08:50]} {[%emt
00:00:04]} Ra5 {[%clk 00:05:42]} {[%emt 00:00:19]} 20. Qc2 {[%clk 00:08:45]}
{[%emt 00:00:10]} Bd6 {[%clk 00:04:34]} {[%emt 00:01:14]} 21. Bxd6 {[%clk
00:08:36]} {[%emt 00:00:14]} Qxd6 {[%clk 00:04:38]} {[%emt 00:00:01]} 22. Rc4
{[%clk 00:08:34]} {[%emt 00:00:07]} Rfa8 {[%clk 00:04:38]} {[%emt 00:00:05]} 23.
Rc1 {[%clk 00:08:26]} {[%emt 00:00:12]} Rb5 {[%clk 00:04:04]} {[%emt 00:00:39]}
24. Rb1 {[%clk 00:08:08]} {[%emt 00:00:23]} Rba5 {[%clk 00:03:33]} {[%emt
00:00:36]} 25. Rd1 {[%clk 00:08:05]} {[%emt 00:00:08]} Qc7 {[%clk 00:03:22]}
{[%emt 00:00:16]} 26. Rc1 {[%clk 00:07:22]} {[%emt 00:00:48]} Qb6 {[%clk
00:03:18]} {[%emt 00:00:09]} 27. Rb4 {[%clk 00:07:20]} {[%emt 00:00:07]} Rb5
{[%clk 00:03:14]} {[%emt 00:00:09]} 28. Rxb5 {[%clk 00:06:55]} {[%emt
00:00:30]} Qxb5 {[%clk 00:03:18]} {[%emt 00:00:01]} 29. Qd2 {[%clk 00:06:58]}
{[%emt 00:00:02]} Ra6 {[%clk 00:03:01]} {[%emt 00:00:23]} 30. Rc5 {[%clk
00:06:51]} {[%emt 00:00:11]} Qb3 {[%clk 00:03:05]} {[%emt 00:00:01]} 31. Rc3
{[%clk 00:06:38]} {[%emt 00:00:18]} Qb5 {[%clk 00:03:09]} 32. Rc5 {[%clk
00:06:41]} {[%emt 00:00:02]} Qb3 {[%clk 00:03:13]} 1/2-1/2

[Event "Rapid Tournament (RAP)"]
[Site "Biel, Switzerland"]
[Date "2026.07.12"]
[Round "7.5"]
[White "Balabayeva, Xeniya"]
[Black "Gopal, G.N."]
[Result "1/2-1/2"]
[TimeControl "15 + 5"]
[WhiteTitle "-"]
[BlackTitle "-"]
[WhiteFideId "13719688"]
[BlackFideId "5015693"]
[WhiteElo "2291"]
[BlackElo "2471"]

1. d4 {[%clk 00:15:09]} Nf6 {[%clk 00:15:09]} {[%emt 00:00:04]} 2. Nf3 {[%clk
00:15:08]} {[%emt 00:00:04]} d5 {[%clk 00:15:12]} {[%emt 00:00:03]} 3. Bf4
{[%clk 00:15:11]} c5 {[%clk 00:15:16]} {[%emt 00:00:02]} 4. e3 {[%clk
00:15:14]} {[%emt 00:00:01]} Nc6 {[%clk 00:15:19]} {[%emt 00:00:04]} 5. Nbd2
{[%clk 00:15:17]} e6 {[%clk 00:15:11]} {[%emt 00:00:14]} 6. c3 {[%clk
00:15:20]} {[%emt 00:00:02]} cxd4 {[%clk 00:14:56]} {[%emt 00:00:20]} 7. exd4
{[%clk 00:15:23]} {[%emt 00:00:02]} Nh5 {[%clk 00:15:00]} {[%emt 00:00:01]} 8.
Be3 {[%clk 00:15:26]} {[%emt 00:00:01]} Bd6 {[%clk 00:15:04]} {[%emt 00:00:01]}
9. Bb5 {[%clk 00:15:29]} {[%emt 00:00:02]} Nf4 {[%clk 00:13:02]} {[%emt
00:02:07]} 10. O-O {[%clk 00:15:31]} {[%emt 00:00:03]} Ng6 {[%clk 00:11:56]}
{[%emt 00:01:11]} 11. a4 {[%clk 00:15:10]} {[%emt 00:00:27]} O-O {[%clk
00:11:54]} {[%emt 00:00:07]} 12. Re1 {[%clk 00:15:07]} {[%emt 00:00:08]} Bd7
{[%clk 00:10:37]} {[%emt 00:01:22]} 13. Bd3 {[%clk 00:14:27]} {[%emt 00:00:44]}
Rc8 {[%clk 00:09:49]} {[%emt 00:00:54]} 14. Ng5 {[%clk 00:10:23]} {[%emt
00:04:08]} h6 {[%clk 00:07:34]} {[%emt 00:02:21]} 15. Ngf3 {[%clk 00:07:53]}
{[%emt 00:02:35]} Nce7 {[%clk 00:06:25]} {[%emt 00:01:14]} 16. Nb3 {[%clk
00:05:48]} {[%emt 00:02:10]} Nf5 {[%clk 00:06:05]} {[%emt 00:00:26]} 17. Bd2
{[%clk 00:05:22]} {[%emt 00:00:30]} Qc7 {[%clk 00:04:54]} {[%emt 00:01:16]} 18.
Qe2 {[%clk 00:04:07]} {[%emt 00:01:20]} Rfe8 {[%clk 00:03:59]} {[%emt
00:01:01]} 19. Ne5 {[%emt 00:01:40]} Bxe5 {[%clk 00:04:02]} 20. dxe5 {[%clk
00:02:35]} {[%emt 00:00:03]} Qb6 {[%clk 00:04:06]} {[%emt 00:00:01]} 21. Bc2
{[%clk 00:01:23]} {[%emt 00:01:17]} a5 {[%clk 00:04:01]} {[%emt 00:00:10]} 22.
Ra3 {[%clk 00:01:12]} {[%emt 00:00:16]} Bc6 {[%clk 00:03:41]} {[%emt 00:00:25]}
23. Bxf5 {[%clk 00:01:04]} {[%emt 00:00:13]} exf5 {[%clk 00:03:45]} {[%emt
00:00:01]} 24. Be3 {[%clk 00:01:07]} {[%emt 00:00:03]} Qd8 {[%clk 00:02:33]}
{[%emt 00:01:17]} 25. f4 {[%clk 00:01:03]} {[%emt 00:00:09]} f6 {[%clk
00:02:03]} {[%emt 00:00:35]} 26. exf6 {[%clk 00:00:48]} {[%emt 00:00:19]} Qxf6
{[%clk 00:01:57]} {[%emt 00:00:11]} 27. Qf2 {[%clk 00:00:44]} {[%emt 00:00:09]}
Re4 {[%clk 00:00:59]} {[%emt 00:01:03]} 28. Nxa5 {[%clk 00:00:30]} {[%emt
00:00:19]} Rce8 {[%clk 00:01:04]} 29. Raa1 {[%clk 00:00:13]} {[%emt 00:00:22]}
Qe6 {[%clk 00:00:15]} {[%emt 00:00:54]} 30. Nxc6 {[%clk 00:00:08]} {[%emt
00:00:10]} Qxc6 {[%clk 00:00:19]} {[%emt 00:00:01]} 31. Bd2 {[%clk 00:00:08]}
{[%emt 00:00:05]} Rxa4 {[%clk 00:00:13]} {[%emt 00:00:11]} 32. Rxa4 {[%clk
00:00:08]} {[%emt 00:00:05]} Qxa4 {[%clk 00:00:17]} {[%emt 00:00:01]} 33. Rxe8+
{[%clk 00:00:10]} {[%emt 00:00:03]} Qxe8 {[%clk 00:00:21]} {[%emt 00:00:01]} 34.
Qe3 {[%clk 00:00:08]} {[%emt 00:00:07]} Qc6 {[%clk 00:00:20]} {[%emt 00:00:06]}
35. Qd4 {[%clk 00:00:09]} {[%emt 00:00:04]} Qe6 {[%clk 00:00:23]} {[%emt
00:00:03]} 36. Kf2 {[%clk 00:00:12]} {[%emt 00:00:02]} Nf8 {[%clk 00:00:27]} 37.
Qb4 {[%clk 00:00:09]} {[%emt 00:00:08]} Qc6 {[%clk 00:00:29]} {[%emt 00:00:03]}
38. Be3 {[%clk 00:00:11]} {[%emt 00:00:02]} Ne6 {[%clk 00:00:31]} {[%emt
00:00:03]} 39. Qe7 {[%clk 00:00:13]} {[%emt 00:00:04]} d4 {[%clk 00:00:16]}
{[%emt 00:00:21]} 40. Bxd4 {[%clk 00:00:14]} {[%emt 00:00:03]} Qe4 {[%clk
00:00:17]} {[%emt 00:00:04]} 1/2-1/2

[Event "Rapid Tournament (RAP)"]
[Site "Biel, Switzerland"]
[Date "2026.07.12"]
[Round "7.6"]
[White "Ghosh, Diptayan"]
[Black "Gloeckler, Christian"]
[Result "1-0"]
[TimeControl "15 + 5"]
[WhiteTitle "-"]
[BlackTitle "-"]
[WhiteFideId "5045207"]
[BlackFideId "34608966"]
[WhiteElo "2480"]
[BlackElo "2332"]

1. c4 {[%clk 00:15:08]} {[%emt 00:00:02]} Nf6 {[%clk 00:15:09]} {[%emt
00:00:03]} 2. Nc3 {[%clk 00:15:11]} {[%emt 00:00:01]} e6 {[%clk 00:15:12]}
{[%emt 00:00:02]} 3. e4 {[%clk 00:15:14]} {[%emt 00:00:02]} c5 {[%clk
00:15:16]} {[%emt 00:00:02]} 4. e5 {[%clk 00:15:17]} Ng8 {[%clk 00:15:20]} 5.
d4 {[%clk 00:15:18]} {[%emt 00:00:06]} cxd4 {[%clk 00:15:21]} {[%emt 00:00:02]}
6. Qxd4 {[%clk 00:15:22]} {[%emt 00:00:02]} Nc6 {[%clk 00:15:25]} {[%emt
00:00:01]} 7. Qf4 {[%clk 00:15:25]} {[%emt 00:00:01]} Nh6 {[%clk 00:14:23]}
{[%emt 00:01:07]} 8. Nf3 {[%clk 00:15:19]} {[%emt 00:00:11]} d6 {[%clk
00:13:09]} {[%emt 00:01:19]} 9. h4 {[%clk 00:15:16]} {[%emt 00:00:08]} Nf5
{[%clk 00:11:38]} {[%emt 00:01:36]} 10. g4 {[%clk 00:15:19]} {[%emt 00:00:02]}
dxe5 {[%clk 00:09:03]} {[%emt 00:02:40]} 11. Nxe5 {[%clk 00:15:22]} {[%emt
00:00:02]} Nxe5 {[%clk 00:09:05]} {[%emt 00:00:03]} 12. Qxe5 {[%clk 00:15:21]}
{[%emt 00:00:04]} Bd6 {[%clk 00:08:26]} {[%emt 00:00:46]} 13. Qe4 {[%clk
00:15:09]} {[%emt 00:00:17]} Ne7 {[%clk 00:07:36]} {[%emt 00:00:55]} 14. Be3
{[%clk 00:11:46]} {[%emt 00:03:28]} Bd7 {[%clk 00:07:01]} {[%emt 00:00:40]} 15.
Qd4 {[%clk 00:09:49]} {[%emt 00:02:02]} Bc6 {[%clk 00:07:00]} {[%emt 00:00:07]}
16. Rh3 {[%clk 00:09:52]} {[%emt 00:00:01]} O-O {[%clk 00:05:19]} {[%emt
00:01:46]} 17. O-O-O {[%clk 00:09:52]} {[%emt 00:00:04]} Bb4 {[%clk 00:05:21]}
{[%emt 00:00:04]} 18. a3 {[%clk 00:06:28]} {[%emt 00:03:30]} Qxd4 {[%clk
00:04:56]} {[%emt 00:00:30]} 19. Bxd4 {[%clk 00:06:31]} {[%emt 00:00:01]} Bd6
{[%clk 00:04:57]} {[%emt 00:00:04]} 20. Kb1 {[%clk 00:06:06]} {[%emt 00:00:30]}
Bf4 {[%clk 00:03:17]} {[%emt 00:01:45]} 21. Bc5 {[%clk 00:03:40]} {[%emt
00:02:31]} Rfe8 {[%clk 00:03:18]} {[%emt 00:00:04]} 22. Rhd3 {[%clk 00:03:03]}
{[%emt 00:00:42]} a6 {[%clk 00:02:10]} {[%emt 00:01:14]} 23. Be2 {[%clk
00:02:11]} {[%emt 00:00:57]} Rac8 {[%clk 00:01:29]} {[%emt 00:00:46]} 24. Bb6
{[%clk 00:02:06]} {[%emt 00:00:10]} Bc7 {[%clk 00:01:06]} {[%emt 00:00:28]} 25.
Bxc7 {[%clk 00:02:01]} {[%emt 00:00:10]} Rxc7 {[%clk 00:01:10]} 26. Rd8 {[%clk
00:01:53]} {[%emt 00:00:13]} Kf8 {[%clk 00:00:55]} {[%emt 00:00:21]} 27. b4
{[%clk 00:01:51]} {[%emt 00:00:07]} Ng6 {[%clk 00:00:49]} {[%emt 00:00:10]} 28.
h5 {[%clk 00:01:35]} {[%emt 00:00:21]} Nf4 {[%clk 00:00:47]} {[%emt 00:00:08]}
29. Bf1 {[%clk 00:00:17]} {[%emt 00:01:23]} Bf3 {[%clk 00:00:44]} {[%emt
00:00:07]} 30. R1d4 {[%clk 00:00:16]} {[%emt 00:00:06]} Rxd8 {[%clk 00:00:31]}
{[%emt 00:00:19]} 31. Rxd8+ {[%clk 00:00:20]} {[%emt 00:00:01]} Ke7 {[%clk
00:00:35]} {[%emt 00:00:01]} 32. Rg8 {[%clk 00:00:15]} {[%emt 00:00:09]} Bxg4
{[%clk 00:00:37]} {[%emt 00:00:03]} 33. Rxg7 {[%clk 00:00:19]} {[%emt
00:00:02]} Bxh5 {[%clk 00:00:28]} {[%emt 00:00:14]} 34. Rg8 {[%clk 00:00:22]}
{[%emt 00:00:02]} Bg6+ {[%clk 00:00:26]} {[%emt 00:00:07]} 35. Kb2 {[%clk
00:00:25]} {[%emt 00:00:02]} Bd3 {[%clk 00:00:18]} {[%emt 00:00:13]} 36. Bxd3
{[%clk 00:00:28]} {[%emt 00:00:02]} Nxd3+ {[%clk 00:00:22]} {[%emt 00:00:01]}
37. Kb3 {[%clk 00:00:32]} Nc1+ {[%clk 00:00:19]} {[%emt 00:00:08]} 38. Kb2
{[%clk 00:00:31]} {[%emt 00:00:07]} Rxc4 {[%clk 00:00:22]} {[%emt 00:00:03]} 39.
Rg3 {[%clk 00:00:30]} {[%emt 00:00:05]} Rxc3 {[%clk 00:00:11]} {[%emt
00:00:17]} 40. Rxc3 {[%clk 00:00:32]} {[%emt 00:00:03]} Ne2 {[%clk 00:00:15]}
{[%emt 00:00:01]} 41. Rc7+ {[%clk 00:00:28]} {[%emt 00:00:09]} Kf6 {[%clk
00:00:19]} 42. Rxb7 {[%clk 00:00:25]} {[%emt 00:00:08]} h5 {[%clk 00:00:23]} 43.
Rb8 {[%clk 00:00:29]} Kg7 {[%clk 00:00:11]} {[%emt 00:00:17]} 44. Rd8 {[%clk
00:00:31]} {[%emt 00:00:03]} h4 {[%clk 00:00:11]} {[%emt 00:00:06]} 45. Rd1
{[%clk 00:00:32]} {[%emt 00:00:04]} h3 {[%clk 00:00:08]} {[%emt 00:00:08]} 46.
a4 {[%clk 00:00:32]} {[%emt 00:00:05]} Nf4 {[%clk 00:00:09]} {[%emt 00:00:04]}
47. Kc3 {[%clk 00:00:18]} {[%emt 00:00:19]} Kf6 {[%clk 00:00:10]} {[%emt
00:00:04]} 48. Kc4 {[%clk 00:00:20]} {[%emt 00:00:04]} Kf5 {[%clk 00:00:11]}
{[%emt 00:00:04]} 49. Rg1 {[%clk 00:00:19]} {[%emt 00:00:05]} Ke4 {[%clk
00:00:09]} {[%emt 00:00:07]} 50. b5 {[%clk 00:00:16]} {[%emt 00:00:09]} axb5+
{[%clk 00:00:07]} {[%emt 00:00:07]} 51. axb5 {[%clk 00:00:20]} Nd3 {[%clk
00:00:06]} {[%emt 00:00:05]} 52. b6 {[%clk 00:00:11]} {[%emt 00:00:15]} Ne5+
{[%clk 00:00:10]} {[%emt 00:00:01]} 53. Kb5 {[%clk 00:00:11]} {[%emt 00:00:05]}
Kf3 {[%clk 00:00:08]} {[%emt 00:00:07]} 54. Rg3+ {[%clk 00:00:14]} {[%emt
00:00:01]} Kxf2 {[%clk 00:00:12]} {[%emt 00:00:01]} 55. Rxh3 {[%clk 00:00:19]}
f5 {[%clk 00:00:16]} {[%emt 00:00:01]} 56. b7 {[%clk 00:00:22]} {[%emt
00:00:02]} Nd7 {[%clk 00:00:17]} {[%emt 00:00:04]} 57. Rh7 {[%clk 00:00:26]}
{[%emt 00:00:01]} Nb8 {[%clk 00:00:20]} {[%emt 00:00:02]} 58. Rh8 {[%clk
00:00:29]} {[%emt 00:00:01]} Nd7 {[%clk 00:00:25]} 59. Rd8 {[%clk 00:00:33]}
1-0

[Event "Rapid Tournament (RAP)"]
[Site "Biel, Switzerland"]
[Date "2026.07.12"]
[Round "7.7"]
[White "Cao, Qingfeng"]
[Black "Sasikiran, Krishnan"]
[Result "1-0"]
[TimeControl "15 + 5"]
[WhiteTitle "-"]
[BlackTitle "-"]
[WhiteFideId "8627568"]
[BlackFideId "5004985"]
[WhiteElo "2265"]
[BlackElo "2520"]

1. d4 {[%clk 00:14:11]} {[%emt 00:00:58]} Nf6 {[%clk 00:15:08]} {[%emt
00:00:03]} 2. c4 {[%clk 00:14:14]} {[%emt 00:00:03]} e6 {[%clk 00:15:11]}
{[%emt 00:00:02]} 3. Nf3 {[%clk 00:14:15]} {[%emt 00:00:04]} b6 {[%clk
00:15:14]} {[%emt 00:00:03]} 4. g3 {[%clk 00:14:17]} {[%emt 00:00:03]} Ba6
{[%clk 00:15:17]} {[%emt 00:00:03]} 5. Nbd2 {[%clk 00:14:10]} {[%emt 00:00:11]}
Bb7 {[%clk 00:14:02]} {[%emt 00:01:20]} 6. Bg2 {[%clk 00:14:12]} {[%emt
00:00:03]} Be7 {[%clk 00:13:51]} {[%emt 00:00:16]} 7. O-O {[%clk 00:14:02]}
{[%emt 00:00:15]} O-O {[%clk 00:13:54]} {[%emt 00:00:02]} 8. Qc2 {[%clk
00:13:46]} {[%emt 00:00:21]} d5 {[%clk 00:13:42]} {[%emt 00:00:17]} 9. cxd5
{[%clk 00:13:45]} {[%emt 00:00:05]} exd5 {[%clk 00:13:32]} {[%emt 00:00:15]} 10.
Ne5 {[%clk 00:13:19]} {[%emt 00:00:32]} c5 {[%clk 00:12:35]} {[%emt 00:01:02]}
11. Ndf3 {[%clk 00:13:14]} {[%emt 00:00:09]} Nbd7 {[%clk 00:11:04]} {[%emt
00:01:36]} 12. Bf4 {[%clk 00:13:07]} {[%emt 00:00:11]} Nxe5 {[%clk 00:09:13]}
{[%emt 00:01:57]} 13. Nxe5 {[%clk 00:12:23]} {[%emt 00:00:49]} Re8 {[%clk
00:08:22]} {[%emt 00:00:56]} 14. Rfd1 {[%clk 00:10:50]} {[%emt 00:01:38]} Bd6
{[%clk 00:07:02]} {[%emt 00:01:25]} 15. e3 {[%clk 00:10:31]} {[%emt 00:00:23]}
Rc8 {[%clk 00:05:57]} {[%emt 00:01:10]} 16. Qf5 {[%clk 00:08:16]} {[%emt
00:02:21]} g6 {[%clk 00:04:37]} {[%emt 00:01:26]} 17. Qd3 {[%clk 00:08:03]}
{[%emt 00:00:17]} Nh5 {[%clk 00:03:48]} {[%emt 00:00:54]} 18. h4 {[%clk
00:07:51]} {[%emt 00:00:18]} Nxf4 {[%clk 00:02:49]} {[%emt 00:01:03]} 19. exf4
{[%clk 00:07:53]} {[%emt 00:00:03]} c4 {[%clk 00:02:50]} {[%emt 00:00:04]} 20.
Qc2 {[%clk 00:07:40]} {[%emt 00:00:17]} Rc7 {[%clk 00:02:32]} {[%emt 00:00:24]}
21. Re1 {[%clk 00:07:01]} {[%emt 00:00:43]} b5 {[%clk 00:01:50]} {[%emt
00:00:48]} 22. h5 {[%clk 00:06:40]} {[%emt 00:00:25]} Rce7 {[%clk 00:01:41]}
{[%emt 00:00:15]} 23. hxg6 {[%clk 00:06:15]} {[%emt 00:00:30]} hxg6 {[%clk
00:01:45]} {[%emt 00:00:01]} 24. Re3 {[%clk 00:06:15]} {[%emt 00:00:04]} Qb6
{[%clk 00:01:10]} {[%emt 00:00:41]} 25. Nd7 {[%clk 00:04:19]} {[%emt 00:02:00]}
Qxd4 {[%clk 00:00:47]} {[%emt 00:00:29]} 26. Rd1 {[%clk 00:04:23]} {[%emt
00:00:02]} Qh8 {[%clk 00:00:37]} {[%emt 00:00:15]} 27. Bxd5 {[%clk 00:04:24]}
{[%emt 00:00:03]} Bxd5 {[%clk 00:00:20]} {[%emt 00:00:23]} 28. Rxd5 {[%clk
00:04:27]} {[%emt 00:00:02]} Rxe3 {[%clk 00:00:18]} {[%emt 00:00:07]} 29. fxe3
{[%clk 00:04:31]} Rxe3 {[%clk 00:00:21]} {[%emt 00:00:02]} 30. Qf2 {[%clk
00:02:53]} {[%emt 00:01:42]} Rd3 {[%clk 00:00:16]} {[%emt 00:00:10]} 31. Rxd3
{[%clk 00:02:10]} {[%emt 00:00:48]} cxd3 {[%clk 00:00:20]} {[%emt 00:00:01]} 32.
Kg2 {[%clk 00:01:03]} {[%emt 00:01:11]} g5 {[%clk 00:00:10]} {[%emt 00:00:16]}
33. fxg5 {[%clk 00:01:00]} {[%emt 00:00:07]} Be7 {[%clk 00:00:14]} {[%emt
00:00:02]} 34. Nf6+ {[%clk 00:00:22]} {[%emt 00:00:43]} Bxf6 {[%clk 00:00:18]}
{[%emt 00:00:01]} 35. gxf6 {[%clk 00:00:26]} {[%emt 00:00:01]} Qh5 {[%clk
00:00:22]} 36. Qf3 {[%clk 00:00:16]} {[%emt 00:00:15]} Qg5 {[%clk 00:00:16]}
{[%emt 00:00:11]} 37. Qa8+ {[%clk 00:00:17]} {[%emt 00:00:05]} Kh7 {[%clk
00:00:18]} {[%emt 00:00:03]} 38. Qe4+ {[%clk 00:00:20]} {[%emt 00:00:01]} Qg6
{[%clk 00:00:22]} {[%emt 00:00:02]} 39. Qd4 {[%clk 00:00:20]} {[%emt 00:00:05]}
Qf5 {[%clk 00:00:24]} {[%emt 00:00:02]} 40. g4 {[%clk 00:00:20]} {[%emt
00:00:05]} Qg6 {[%clk 00:00:25]} {[%emt 00:00:04]} 41. Kg3 {[%clk 00:00:23]}
{[%emt 00:00:02]} a6 {[%clk 00:00:28]} {[%emt 00:00:02]} 42. a3 {[%clk
00:00:22]} {[%emt 00:00:06]} Kh6 {[%clk 00:00:28]} {[%emt 00:00:06]} 43. Qd8
{[%clk 00:00:23]} {[%emt 00:00:04]} Kg5 {[%clk 00:00:26]} {[%emt 00:00:06]} 44.
Qh8 {[%clk 00:00:10]} {[%emt 00:00:18]} Qxf6 {[%clk 00:00:25]} {[%emt
00:00:06]} 45. Qh5# {[%clk 00:00:14]} 1-0